fUSD/lending_fUSD_20241101
["ID","MTS","AMOUNT","RATE_DAILY","PERIOD"]
[341126432,1730429245179,-162.13,0.00039435,2]
[341126433,1730429245199,-735.06,0.00039675,2]
[341126434,1730429245219,-204.8303,0.00039888,7]
[341126435,1730429245238,-499.73162246,0.000404,2]
[341126436,1730429249105,-0.26837754,0.000404,2]
[341126437,1730429249125,-205.33035703,0.000404,5]
[341126438,1730429249148,-822.43,0.0004095,2]
[341126439,1730429249253,-2735.87,0.0004095,2]
[341126440,1730429249273,-150.0,0.0004102,2]
[341126441,1730429249294,-705.41876843,0.0004102,2]
[341126442,1730429347085,-294.57123157,0.0004102,2]
[341126443,1730429347104,-515.71312303,0.0004102,2]
[341126444,1730429356088,-7762.07687697,0.0004102,2]
[341126445,1730429356109,-150.0,0.0004108,2]
[341126446,1730429356129,-150.59,0.0004112,2]
[341126447,1730429356150,-8119.26550276,0.0004121,2]
[341126448,1730429356169,-22921.18,0.00041211,2]
[341126449,1730429356190,-150.0,0.00041231,2]
[341126450,1730429356210,-2524.67,0.00041246,2]
[341126451,1730429356229,-610.84,0.00041319,2]
[341126452,1730429356248,-542.34,0.0004133,2]
[341126453,1730429356268,-5000.0,0.00041354,2]
[341126454,1730429356288,-3367.71,0.00041366,2]
[341126455,1730429356308,-200.0,0.00041374,2]
[341126456,1730429356327,-25000.0,0.00041485,2]
[341126457,1730429356348,-158.58,0.0004151,2]
[341126458,1730429356463,-2524.67,0.00041586,2]
[341126459,1730429356484,-300.4,0.00041653,2]
[341126460,1730429356505,-295.16,0.0004167,2]
[341126461,1730429356527,-197.27,0.00041695,2]
[341126462,1730429356547,-150.0,0.00041713,2]
[341126463,1730429356568,-1431.2,0.00041759,2]
[341126464,1730429356588,-458.95,0.00041787,2]
[341126465,1730429356611,-1143.59,0.0004187,120]
[341126466,1730429356632,-4853.94,0.00041892,2]
[341126467,1730429356652,-500.0,0.00041938,31]
[341126468,1730429356672,-735.06,0.00041939,2]
[341126469,1730429356694,-869.34,0.00042102,30]
[341126470,1730429356714,-4995.19,0.00042112,2]
[341126471,1730429356734,-185.94,0.000422,120]
[341126472,1730429356754,-250.0,0.00042245,120]
[341126473,1730429356776,-1339.31,0.00042265,10]
[341126474,1730429356796,-169.89,0.00042268,2]
[341126475,1730429356816,-3426.39282027,0.00042275,2]
[341126476,1730429358108,-5098.63154649,0.00042275,2]
[341126477,1730429362090,-9746.18563324,0.00042275,2]
[341126478,1730429362111,-154.72575,0.00042289,14]
[341126479,1730429362132,-222.6,0.00042296,120]
[341126480,1730429362156,-150.0,0.00042318,7]
[341126481,1730429362183,-300.4,0.00042322,2]
[341126482,1730429362203,-250.0,0.00042344,2]
[341126483,1730429362222,-401.11,0.00042377,2]
[341126484,1730429362246,-250.0,0.00042524,2]
[341126485,1730429362267,-12286.14289676,0.00042527,2]
[341126486,1730429384044,150.0,0.00041495,2]
[341126487,1730429384707,150.0,0.00041148,2]
[341126492,1730429394101,150.0,0.0004108,2]
[341126493,1730429396965,150.0,0.00041741,2]
[341126495,1730429412030,151.0,0.0003,120]
[341126496,1730429413095,150.0,0.00041607,2]
[341126497,1730429415267,154.0785,0.00034117,2]
[341126498,1730429415615,154.0785,0.00041372,14]
[341126499,1730429428995,150.0,0.00041015,2]
[341126501,1730429432242,-11613.85710324,0.00042527,2]
[341126502,1730429432251,-704.84,0.00042845,2]
[341126503,1730429432260,-300.4,0.00042992,2]
[341126504,1730429432269,-1762.71,0.00043127,2]
[341126505,1730429432278,-214.03,0.00043193,120]
[341126506,1730429432287,-3999.9999,0.000435,80]
[341126507,1730429432296,-300.4,0.00043661,2]
[341126508,1730429432305,-168.42,0.00044019,2]
[341126509,1730429432316,-735.06,0.00044203,2]
[341126510,1730429432326,-300.4,0.0004433,2]
[341126511,1730429432336,-1196.34655803,0.00044509,15]
[341126512,1730429432346,-340.36673282,0.00044609,2]
[341126513,1730429432356,-300.4,0.00044999,2]
[341126514,1730429432366,-1250.8,0.00045,120]
[341126515,1730429432376,-250.0,0.00045467,120]
[341126516,1730429432385,-180.0,0.0004553,120]
[341126517,1730429432395,-152.0,0.00045647,3]
[341126518,1730429432405,-300.4,0.00045669,2]
[341126519,1730429432415,-159.44,0.00045753,2]
[341126520,1730429432425,-1196.34655802,0.00046181,15]
[341126521,1730429432436,-300.4,0.00046338,2]
[341126522,1730429432448,-735.06,0.00046467,2]
[341126523,1730429432458,-295.16,0.00046879,2]
[341126525,1730429432468,-758.0343,0.000469,2]
[341126527,1730429432478,-111127.12884793,0.00046926,2]
[341126528,1730429432503,-675.65734826,0.00046926,2]
[341126529,1730429432514,-834.06811505,0.00046926,2]
[341126530,1730429432524,-693.44,0.00046926,2]
[341126531,1730429432551,-2066.71448885,0.00046926,2]
[341126532,1730429437618,3585.8859,0.0004092,2]
[341126534,1730429438150,-76132.17544352,0.00046926,2]
[341126538,1730429438363,-942.98292681,0.00046926,2]
[341126539,1730429438602,-2989.16593856,0.00046926,2]
[341126540,1730429440307,-2515.99735624,0.00046926,2]
[341126543,1730429440552,-2104.19431082,0.00046926,2]
[341126544,1730429440600,-3951.89262601,0.00046926,2]
[341126545,1730429440636,-1885.77644473,0.00046926,2]
[341126546,1730429440647,-2554.5,0.00046926,2]
[341126562,1730429443136,150.0,0.00041146,2]
[341126563,1730429443159,-8429.39449043,0.00046926,2]
[341126564,1730429443180,-129.90358592,0.00046926,2]
[341126565,1730429443386,-313.13470996,0.00046926,2]
[341126570,1730429443646,-311.83469523,0.00046926,2]
[341126574,1730429444480,150.0,0.00041233,2]
[341126575,1730429446349,-391.77150957,0.00046926,2]
[341126576,1730429446404,-141.01046015,0.00046926,2]
[341126577,1730429453263,150.0,0.00041825,2]
[341126578,1730429456924,150.0,0.00041028,2]
[341126579,1730429472801,150.0,0.00041698,2]
[341126580,1730429488869,150.0,0.00041989,2]
[341126581,1730429500464,150.0,0.00041758,2]
[341126582,1730429502554,153.0,0.00035616,2]
[341126583,1730429502870,188.28975,0.00036051,2]
[341126584,1730429508682,150.0,0.00041209,2]
[341126585,1730429511055,150.0,0.00041003,2]
[341126586,1730429519427,150.0,0.00041151,2]
[341126587,1730429532967,150.0,0.00041239,2]
[341126588,1730429541090,162.6315,0.00036622,2]
[341126589,1730429682809,159.95,0.00015342,2]
[341126590,1730429733328,156.0,0.00019178,2]
[341126591,1730430187541,156.86,0.00015342,2]
[341126592,1730430343145,-151.0,0.0003,120]
[341126593,1730430343168,-227.0,0.000302,2]
[341126594,1730430343188,-1168.0,0.00035615,2]
[341126595,1730430343209,-153.0,0.00035616,2]
[341126596,1730430343229,-153.0,0.00035616,2]
[341126597,1730430343251,-153.0,0.00035616,2]
[341126598,1730430343283,-153.0,0.00035616,2]
[341126599,1730430343319,-153.0,0.00035616,2]
[341126600,1730430343360,-153.0,0.00035616,2]
[341126601,1730430343395,-153.0,0.00035616,2]
[341126602,1730430343428,-153.0,0.00035616,2]
[341126603,1730430343462,-153.0,0.00035616,2]
[341126604,1730430343498,-153.0,0.00035616,2]
[341126605,1730430343531,-153.0,0.00035616,2]
[341126606,1730430343565,-153.0,0.00035616,2]
[341126607,1730430343595,-153.0,0.00035616,2]
[341126608,1730430343624,-1708.30023018,0.00035616,2]
[341126609,1730430357480,-643.78675834,0.00035616,2]
[341126610,1730430434092,-153.0,0.00035616,2]
[341126611,1730430434114,-153.0,0.00035616,2]
[341126612,1730430434134,-278.61225,0.00036843,2]
[341126613,1730430434154,-155.72490259,0.0003835,5]
[341126614,1730430434173,-162.3428446,0.0003835,5]
[341126615,1730430434193,-1462.23441565,0.0003835,2]
[341126616,1730430434213,-1721.16390961,0.00041,2]
[341126617,1730430451131,-24317.44219039,0.00041,2]
[341126618,1730430451149,-482.0,0.000411,2]
[341126619,1730430451169,-3599.38,0.000411,2]
[341126620,1730430451187,-150.0,0.00041187,2]
[341126621,1730430451206,-150.99,0.00041187,2]
[341126622,1730430451224,-150.0,0.00041193,2]
[341126623,1730430451244,-30.58174921,0.00041468,2]
[341126628,1730430545085,-150.0,0.00041469,2]
[341126629,1730430545107,-150.0,0.00041533,2]
[341126630,1730430545127,-150.0,0.00041618,2]
[341126631,1730430545147,-150.0,0.00041759,2]
[341126632,1730430545167,-150.0,0.00041892,2]
[341126633,1730430545186,-251.23141501,0.000419,2]
[341126634,1730430546088,-612.43,0.00042287,2]
[341126635,1730430546108,-214.03,0.00043092,120]
[341126636,1730430546128,-223.64,0.00043185,2]
[341126637,1730430546148,-278.61225,0.00043519,14]
[341126638,1730430581126,150.0,0.00041762,2]
[341126639,1730430594075,150.0,0.00041989,2]
[341126640,1730430596214,150.0,0.00041971,2]
[341126641,1730430632339,-2776.838633,0.00043834,7]
[341126642,1730430632348,-371.41177352,0.00043834,7]
[341126643,1730430632542,-450.44936041,0.00043834,7]
[341126644,1730430632553,-589.86210307,0.00043834,7]
[341126645,1730430632563,-110.13789693,0.00044064,2]
[341126646,1730430632575,-889.86210307,0.00044064,2]
[341126647,1730430632584,-49.22914348,0.00044064,2]
[341126648,1730430632595,-688.39999162,0.00044064,2]
[341126649,1730430632606,-2194.55656055,0.00044064,2]
[341126650,1730430632753,-663.698535,0.00044064,2]
[341126653,1730430632765,-2966.48754,0.00044064,2]
[341126658,1730430632777,-2148.38649491,0.00044064,2]
[341126681,1730430638434,-3208.93265905,0.00044064,2]
[341126682,1730430638512,-419.63730045,0.00044064,2]
[341126684,1730430638942,-11560.67177494,0.00044064,2]
[341126685,1730430638951,-500.0,0.00044073,2]
[341126686,1730430638960,-300.0,0.00044073,10]
[341126687,1730430638969,-200.55,0.00044102,2]
[341126688,1730430638978,-612.43,0.0004455,2]
[341126689,1730430638987,-159.82,0.00044552,120]
[341126690,1730430638996,-250.0,0.00044744,120]
[341126691,1730430639005,-1000.0,0.000448,20]
[341126692,1730430639015,-1000.0,0.0004483,20]
[341126693,1730430639024,-150.0,0.00044875,7]
[341126694,1730430639035,-154.61,0.00044883,120]
[341126695,1730430639046,-345.972,0.00044988,72]
[341126696,1730430639057,-165.724,0.0004527,2]
[341126697,1730430639067,-150.59,0.00045448,2]
[341126698,1730430639079,-162.11,0.00045579,2]
[341126699,1730430639089,-169.89,0.00045631,2]
[341126700,1730430639098,-950.71578036,0.00046127,30]
[341126701,1730430639108,-6248.4169,0.0004636,2]
[341126702,1730430639118,-2365.2511,0.0004636,2]
[341126703,1730430639128,-1116.1,0.0004645,10]
[341126704,1730430639139,-930.08,0.0004645,10]
[341126705,1730430639148,-775.07,0.0004645,10]
[341126706,1730430639158,-66931.31140228,0.0004646,2]
[341126709,1730430640469,-200.0,0.00045448,2]
[341126710,1730430640478,-5678.80397426,0.0004646,2]
[341126800,1730430642850,150.0,0.0004191,2]
[341126804,1730430647228,-454.00870263,0.0004646,2]
[341126805,1730430647240,-8310.7318082,0.0004646,2]
[341126806,1730430647249,-150.0,0.0004646,2]
[341126807,1730430647259,-200.0,0.0004646,2]
[341126808,1730430647268,-957.07724647,0.000465,15]
[341126809,1730430647277,-482.651404,0.000466,2]
[341126810,1730430647287,-411.48063058,0.0004669,2]
[341126811,1730430647296,-612.43,0.00046814,2]
[341126812,1730430647305,-404.73826412,0.00046908,2]
[341126813,1730430647314,-2385.98197819,0.00046926,2]
[341126814,1730430650670,150.0,0.00041246,2]
[341126815,1730430656673,150.0,0.00041863,2]
[341126816,1730430670843,550.0,0.00015,2]
[341126817,1730430671930,600.0,0.00017,2]
[341126818,1730430673010,650.0,0.00019,2]
[341126819,1730430693332,156.93,0.00015342,2]
[341126820,1730430700425,150.0,0.00041389,2]
[341126821,1730430705463,153.0,0.00035616,2]
[341126822,1730430712696,150.0,0.00041019,2]
[341126823,1730430716311,150.0,0.00041635,2]
[341126824,1730431021913,300.0,0.00019725,2]
[341126825,1730431082898,227.0,0.00019725,2]
[341126826,1730431381838,158.96,0.00015342,2]
[341126827,1730431508090,196628.29673548,0.00016,2]
[341126828,1730431529486,3536.60780857,0.000101,2]
[341126829,1730431535137,-156.0,0.00025314,2]
[341126830,1730431535160,-153.0,0.00035616,2]
[341126831,1730431535182,-153.0,0.00035616,2]
[341126832,1730431535204,-153.0,0.00035616,2]
[341126833,1730431535225,-178.4455,0.00036271,2]
[341126834,1730431535246,-2766.794107,0.000398,2]
[341126835,1730431535372,-328.75,0.0004,120]
[341126836,1730431535393,-150.0,0.00041121,2]
[341126837,1730431535413,-150.0,0.00041555,2]
[341126838,1730431535433,-150.0,0.00041571,2]
[341126839,1730431535454,-8674.59686575,0.00042,2]
[341126840,1730431535481,-11248.7685298,0.00042,2]
[341126841,1730431541713,71701.17546371,0.00044836,30]
[341126842,1730431635118,-1108.66138961,0.0002495,2]
[341126843,1730431635139,-3079.60645547,0.00031048,2]
[341126844,1730431691059,12535.45224531,0.0002,2]
[341126845,1730431704126,3980.08359051,0.0002,2]
[341126850,1730431711484,1476.22319884,0.000129,2]
[341126854,1730431745213,-1118.77286381,0.0003,2]
[341126855,1730431745235,-10702.76908138,0.00031,60]
[341126856,1730431745256,-4162.50160933,0.00031048,2]
[341126857,1730431745279,-16851.02904179,0.00035,2]
[341126858,1730431745299,-26386.62971062,0.00036,120]
[341126859,1730431745319,-29294.17917922,0.00037,2]
[341126860,1730431745342,-645.89,0.0003999,10]
[341126861,1730431745363,-538.24,0.0003999,10]
[341126862,1730431745382,-2693.2089985,0.0004,2]
[341126863,1730431745401,-49801.72066906,0.0004,4]
[341126864,1730431745421,-670.80447806,0.0004,5]
[341126865,1730431745440,-1300.2381271,0.0004,30]
[341126866,1730431745460,-6885.07607482,0.0004079,2]
[341126867,1730431745480,-1108.25511185,0.00041,120]
[341126868,1730431745981,448.53,0.0003999,10]
[341126869,1730431753097,-19070.61140106,0.00042,2]
[341126870,1730431753117,-21442.84535894,0.00042,30]
[341126871,1730431756202,-35148.337,0.00042,30]
[341126873,1730431771095,-30707.80990172,0.00042,30]
[341126874,1730431773122,-59629.46279318,0.00042,30]
[341126875,1730431832599,-414.14300853,0.000427,28]
[341126876,1730431832609,-999.73415646,0.000428,60]
[341126877,1730431832620,-3055.94470837,0.000428,60]
[341126879,1730431832629,-178.4455,0.00043068,14]
[341126881,1730431832639,-538.38,0.00044036,2]
[341126884,1730431832648,-414.1430085,0.00044943,28]
[341126887,1730431832657,-152.0,0.00045647,3]
[341126889,1730431832666,-156.93,0.00045753,2]
[341126892,1730431832676,-2463.35678313,0.00045835,2]
[341126894,1730431832688,-2094.07316146,0.00045835,2]
[341126896,1730431832764,-1974.13736734,0.00045835,2]
[341126898,1730431832919,-450.0,0.00045835,2]
[341126899,1730431832932,-800.0,0.00045835,2]
[341126977,1730431838570,-200.0,0.00045835,2]
[341126978,1730431838580,-468.15406335,0.00045835,2]
[341126979,1730431838593,-1006.8,0.00045835,2]
[341126982,1730431838714,-9656.42772745,0.00045835,2]
[341126983,1730431838854,-539.89162864,0.00045835,2]
[341126987,1730431840603,-1242.5145945,0.00045835,2]
[341126990,1730431840961,-1388.210571,0.00045835,2]
[341126999,1730431843437,158.9,0.00037053,2]
[341127001,1730431843793,-1816.43410313,0.00045835,2]
[341127002,1730431843803,-138.47827891,0.00045839,120]
[341127003,1730431843815,-21.34172109,0.00045839,120]
[341127004,1730431843824,-200.55,0.00045841,2]
[341127005,1730431843833,-250.0,0.00046086,120]
[341127006,1730431843843,-1000.0,0.00046167,2]
[341127007,1730431843852,-538.38,0.000463,2]
[341127008,1730431843863,-276.778,0.0004646,77]
[341127009,1730431843872,-150.0,0.0004675,30]
[341127010,1730431843881,-222.6,0.00046782,120]
[341127011,1730431843891,-146.53402969,0.00046849,2]
[341127014,1730431843930,-48.93597031,0.00046849,2]
[341127016,1730431843940,-153.74,0.00046849,2]
[341127018,1730431843951,-150.0,0.00046849,2]
[341127020,1730431843961,-150.0,0.00046849,2]
[341127022,1730431843971,-150.0,0.00046849,2]
[341127024,1730431843981,-150.0,0.00046849,2]
[341127026,1730431843991,-160.9,0.00046849,2]
[341127028,1730431844000,-150.0,0.00046849,2]
[341127030,1730431844010,-150.0,0.00046849,2]
[341127032,1730431844019,-360.97,0.00046849,2]
[341127034,1730431844029,-360.97,0.00046849,2]
[341127035,1730431844039,-360.97,0.00046849,2]
[341127038,1730431844048,-360.97,0.00046849,2]
[341127040,1730431844058,-360.97,0.00046849,2]
[341127042,1730431844067,-182.61,0.00046849,2]
[341127044,1730431844077,-108943.014683,0.00046926,2]
[341127046,1730431844087,-210.41943112,0.00046945,2]
[341127048,1730431844097,-1641.42696388,0.00046949,2]
[341127050,1730431844107,-404.73826412,0.00046956,2]
[341127052,1730431844116,-1406.25904954,0.00046962,2]
[341127064,1730431846735,-200.0,0.000463,2]
[341127065,1730431846744,-171.35303999,0.00046962,2]
[341127066,1730431846755,-7634.17377375,0.00046962,2]
[341127067,1730431846858,-5097.359802,0.00046962,2]
[341127068,1730431846869,-323.99730176,0.00046962,2]
[341127069,1730431846908,-465.36309392,0.00046962,2]
[341127073,1730431884490,157.92,0.00015342,2]
[341127074,1730431884687,157.92,0.00028858,2]
[341127081,1730432395578,161.98,0.00015342,2]
[341127082,1730432475599,550.0,0.00015,2]
[341127083,1730432476920,600.0,0.00017,2]
[341127084,1730432741143,-500.0,0.00028,7]
[341127085,1730432741165,-400.45819169,0.000307,2]
[341127086,1730432747099,-422.54180831,0.000307,2]
[341127087,1730432747119,-431.94085765,0.00033,2]
[341127088,1730432747139,-171.64,0.00033959,2]
[341127089,1730432747159,-1774.28808463,0.00033959,2]
[341127090,1730432832138,-4519.99035927,0.00034652,2]
[341127091,1730432832159,-160.13,0.00034752,30]
[341127092,1730432832181,-169.65,0.00034752,2]
[341127093,1730432832203,-850.53,0.00034752,2]
[341127094,1730432832225,-999.99,0.00034752,2]
[341127095,1730432832245,-592.81,0.00034752,2]
[341127096,1730432832266,-14147.21241801,0.00034752,2]
[341127097,1730432832287,-160.92,0.00035434,2]
[341127098,1730432832307,-233.768,0.00035434,2]
[341127099,1730432832328,-1951.8,0.00035434,10]
[341127100,1730432832355,-153.0,0.00035616,2]
[341127101,1730432832377,-153.0,0.00035616,2]
[341127102,1730432832398,-263.353,0.00036766,46]
[341127103,1730432832419,-500.0,0.000379,2]
[341127104,1730432832441,-500.0,0.000379,5]
[341127105,1730432832462,-498.64183754,0.0003927,5]
[341127106,1730432832486,-150.99,0.000395,2]
[341127107,1730432832508,-282.4253,0.00039888,7]
[341127108,1730432832530,-300.0,0.0004,2]
[341127109,1730432832553,-299.99,0.0004,120]
[341127110,1730432832574,-175.1,0.00040431,2]
[341127111,1730432832598,-558.69,0.00040443,2]
[341127112,1730432832619,-216.0,0.00041028,4]
[341127113,1730432832639,-2919.31,0.00041029,2]
[341127114,1730432832660,-841.17,0.00041029,2]
[341127115,1730432832683,-478.39,0.00041029,2]
[341127116,1730432832704,-419.84,0.0004107,2]
[341127117,1730432832725,-2294.82,0.00041084,2]
[341127118,1730432832745,-157.13,0.00041096,2]
[341127119,1730432832766,-243.68,0.00041117,120]
[341127120,1730432832786,-500.0,0.00041121,2]
[341127121,1730432832807,-150.0,0.00041121,7]
[341127122,1730432832828,-279.47,0.00041256,2]
[341127123,1730432832851,-174.27,0.00041379,2]
[341127124,1730432832872,-150.0,0.00041467,2]
[341127125,1730432832892,-809.25,0.00041509,120]
[341127126,1730432832914,-226.75,0.00041512,120]
[341127127,1730432832934,-17963.83706716,0.00041551,2]
[341127128,1730432832955,-57018.15,0.00041561,2]
[341127129,1730432832975,-150.0,0.00041601,2]
[341127130,1730432832995,-150.99,0.00041601,30]
[341127131,1730432833015,-823.32,0.00041601,2]
[341127132,1730432833034,-3076.04,0.00041601,2]
[341127133,1730432833054,-152.66,0.00041622,2]
[341127134,1730432833076,-150.0,0.00041793,2]
[341127135,1730432833100,-190.84,0.00041934,30]
[341127136,1730432833120,-11372.45,0.00041944,2]
[341127137,1730432833146,-2806.08,0.00041995,2]
[341127138,1730432833167,-260.88,0.00042008,2]
[341127139,1730432833190,-250.0,0.00042023,120]
[341127140,1730432833211,-190.84,0.00042061,30]
[341127141,1730432833233,-1105.92,0.00042071,2]
[341127142,1730432833254,-250.0,0.00042092,2]
[341127143,1730432833275,-3348.45524493,0.00042106,120]
[341127144,1730432846150,-500.0,0.00031,30]
[341127145,1730432846171,-500.0,0.000312,30]
[341127146,1730432846192,-811.75475507,0.00042106,120]
[341127147,1730432846212,-200.0,0.00042211,2]
[341127148,1730432846232,-190.84,0.00042267,30]
[341127149,1730432846252,-190.84,0.00042267,30]
[341127150,1730432846273,-190.84,0.00042267,30]
[341127151,1730432846293,-14518.78970423,0.00042277,2]
[341127152,1730432896622,157.33,0.00015342,2]
[341127153,1730432950083,-150.0,0.00041666,2]
[341127154,1730432950103,-150.0,0.0004174,2]
[341127155,1730432950123,-150.0,0.00041787,2]
[341127158,1730433020634,230.0,0.00042,30]
[341127159,1730433023669,130.2687432,0.00033291,2]
[341127160,1730433023690,34.5807568,0.00033291,2]
[341127161,1730433024002,164.8495,0.00040721,14]
[341127164,1730433031954,-418.30932912,0.00042277,2]
[341127165,1730433031967,-250.65,0.00042277,2]
[341127166,1730433031980,-858.16390953,0.00042277,2]
[341127167,1730433031992,-7854.08705712,0.00042277,2]
[341127168,1730433032004,-301.02,0.00042316,2]
[341127169,1730433032014,-157.92,0.00042374,2]
[341127170,1730433032024,-160.92,0.00042409,14]
[341127171,1730433032033,-233.768,0.00042409,14]
[341127172,1730433032042,-500.0,0.00042434,10]
[341127173,1730433032052,-511.0922608,0.00042434,10]
[341127174,1730433032061,-192.14,0.00042504,2]
[341127175,1730433032071,-558.69,0.00042707,2]
[341127176,1730433032081,-150.99,0.00042707,2]
[341127177,1730433032091,-174.27,0.00042931,2]
[341127178,1730433032100,-2000.0,0.00043,30]
[341127179,1730433032111,-590.3679,0.00043,30]
[341127180,1730433032122,-3490.37,0.00043727,2]
[341127181,1730433032132,-946.0,0.00043836,30]
[341127182,1730433032144,-190.14,0.0004393,120]
[341127183,1730433032154,-21137.95758442,0.00044,120]
[341127184,1730433032167,-2000.0,0.00044005,30]
[341127185,1730433032183,-1562.05,0.00044275,2]
[341127186,1730433032194,-155.32,0.00044364,2]
[341127187,1730433032203,-174.27,0.00044482,2]
[341127188,1730433032213,-154.83,0.0004461,2]
[341127189,1730433032222,-1463.07,0.00044636,2]
[341127190,1730433032232,-1026.63802195,0.00044688,6]
[341127191,1730433032241,-1000.0,0.00044707,2]
[341127192,1730433032251,-180.67,0.00044812,120]
[341127193,1730433032260,-558.69,0.00044971,2]
[341127194,1730433032270,-364.98279571,0.00045,120]
[341127195,1730433032279,-168.68,0.00045026,2]
[341127196,1730433032289,-180.0,0.00045419,120]
[341127198,1730433032299,-6694.0,0.000459,2]
[341127200,1730433032309,-315.7181,0.000459,2]
[341127202,1730433032319,-3500.0,0.00046,20]
[341127204,1730433032328,-167.5,0.00046,120]
[341127205,1730433032338,-983.12369921,0.00046023,10]
[341127206,1730433032348,-174.27,0.00046033,2]
[341127207,1730433032358,-1551.82761493,0.00046247,7]
[341127208,1730433032369,-1500.0,0.00046494,7]
[341127209,1730433032380,-1031.0,0.000465,120]
[341127210,1730433032393,-8300.11242328,0.000465,2]
[341127211,1730433032402,-349.2277217,0.00046534,2]
[341127212,1730433032412,-150.0,0.00046668,7]
[341127213,1730433032422,-349.2277217,0.00046718,2]
[341127214,1730433032432,-431.71,0.00046849,2]
[341127215,1730433032442,-2694.6567,0.000469,2]
[341127216,1730433032452,-1519.81797078,0.000469,15]
[341127217,1730433032463,-308.70234003,0.00046961,2]
[341127218,1730433032473,-47340.1720881,0.00046962,2]
[341127219,1730433032486,-34650.00000155,0.00046962,2]
[341127220,1730433032497,-420.75153955,0.00046962,2]
[341127221,1730433032510,-5007.79527781,0.00046962,2]
[341127222,1730433032521,-2320.96704111,0.00046962,2]
[341127223,1730433032532,-13495.05892328,0.00046962,2]
[341127224,1730433032544,-728.6254146,0.00046962,2]
[341127225,1730433032556,-450.80231563,0.00046962,2]
[341127226,1730433038757,-230.0,0.00044,30]
[341127227,1730433038766,-257.25195003,0.00046961,2]
[341127228,1730433038776,-1644.32757775,0.00046962,2]
[341127229,1730433038821,-1029.75046315,0.00046962,2]
[341127230,1730433038833,-4004.58175,0.00046962,2]
[341127231,1730433038843,-1851.48837454,0.00046962,2]
[341127232,1730433038952,165.27,0.0003711,2]
[341127233,1730433039074,-4122.71750963,0.00046962,2]
[341127234,1730433039087,-807.97892394,0.00046962,2]
[341127247,1730433039715,-14828.914546,0.00046962,2]
[341127252,1730433039822,-1900.34049457,0.00046962,2]
[341127256,1730433040151,-8046.14603197,0.00046962,2]
[341127257,1730433040223,-1785.00278721,0.00046962,2]
[341127264,1730433043220,-311.15675014,0.00046962,2]
[341127265,1730433043502,-1501.38357449,0.00046962,2]
[341127288,1730433061140,1500.0,0.0001598,2]
[341127289,1730433061420,1500.0,0.00015822,2]
[341127290,1730433061925,1500.0,0.00015896,2]
[341127291,1730433062120,1500.0,0.00015991,2]
[341127292,1730433062225,1500.0,0.00015808,2]
[341127293,1730433062303,518.90674834,0.00015925,2]
[341127294,1730433103008,153.0,0.00035616,2]
[341127295,1730433122478,300.0,0.00019725,2]
[341127296,1730433181927,300.0,0.00019725,2]
[341127297,1730433291872,10000.0,0.0002,2]
[341127298,1730433301909,300.0,0.00019725,2]
[341127299,1730433422417,300.0,0.00019725,2]
[341127300,1730433437385,157.46,0.00015342,2]
[341127303,1730433662390,300.0,0.00019725,2]
[341127304,1730433782508,300.0,0.00019725,2]
[341127306,1730433841262,300.0,0.00019725,2]